Cogmind - Beta 15 @@@ ROGUE MODE // 2025.07.05 @ 15:47:48 Player: Raix Result: Self-destructed Performance ------------- Evolutions (4) 2000 Regions Visited (7) 1400 Robots Destroyed (25) 125 Value Destroyed (656) 656 Prototype IDs (1) 20 Alien Tech Used (0) 0 Bonus (0) 0 TOTAL SCORE: 4201 Bonus ------- None Cogmind --------- Core Integrity 188/850 Matter 138/300 Energy 79/100 System Corruption 0% Temperature Cool (0) Movement Core (50) Location -6/Factory Parts ------- > --- POWER (2) -------- (None) > --- PROPULSION (4) --- (None) > --- UTILITY (5) ------ Advanced Visual Processing Unit Improved Signal Interpreter > --- WEAPON (4) ------- (None) > --- INVENTORY (5) ---- High-capacity Storage Unit Weight Redist. System Peak State ------------ > --- POWER ------------ (None) > --- PROPULSION ------- Aluminum Leg Aluminum Leg Flexi-carbon Leg Gravmag System > --- UTILITY ---------- Medium Storage Unit Advanced Visual Processing Unit Improved Signal Interpreter Improved Terrain Scanner Seismic Detector > --- WEAPON ----------- Particle Gun Remote Datajack > --- INVENTORY -------- High-capacity Storage Unit Weight Redist. System Heart of Steel [Rating: 30] Favorites ----------- Power Subdweller Power Source Engine Subdweller Power Source Power Core Light Nuclear Core Propulsion Aluminum Leg Leg Aluminum Leg Wheel Subdweller Monowheel Hover Unit Gravmag System Flight Unit VTOL Module Utility Improved Signal Interpreter Device Improved Terrain Scanner Storage Medium Storage Unit Processor Improved Signal Interpreter Protection Makeshift Thermal Plating Weapon Light Assault Rifle Energy Gun Particle Gun Ballistic Gun Light Assault Rifle Special Weapon Remote Datajack Build | -11 -10 -10 -8 -7 -7 -7 -6 ------- Run | Yrd Mat Sub Mat Fac Low Low Fac Slots Evolved 8 | . . . 4 2 . . 2 Power 1 | . . . 1 . . . . Propulsion 2 | . . . 1 1 . . . Utility 3 | . . . 1 1 . . 1 Weapon 2 | . . . 1 . . . 1 Parts Attached 64 | 8 2 16 7 12 15 . 4 Power 8 | 1 . 2 1 2 2 . . Engine 6 | 1 . 2 1 1 1 . . Core 2 | . . . . 1 1 . . Reactor . | . . . . . . . . Propulsion 24 | 2 2 9 3 2 4 . 2 Treads . | . . . . . . . . Leg 5 | . . . . . 4 . 1 Wheel 11 | 2 2 7 . . . . . Hover 1 | . . . . . . . 1 Flight 7 | . . 2 3 2 . . . Utility 16 | 2 . 1 3 5 3 . 2 Device 11 | 1 . 1 2 3 2 . 2 Storage 2 | 1 . . . . 1 . . Processor 2 | . . . . 2 . . . Hackware . | . . . . . . . . Protection 1 | . . . 1 . . . . Artifact . | . . . . . . . . Weapon 16 | 3 . 4 . 3 6 . . Energy Gun 5 | 1 . . . 1 3 . . Energy Cannon . | . . . . . . . . Ballistic Gun 9 | 2 . 3 . 2 2 . . Ballistic Cannon . | . . . . . . . . Launcher . | . . . . . . . . Special Weapon 2 | . . 1 . . 1 . . Impact Weapon . | . . . . . . . . Slashing Weapon . | . . . . . . . . Piercing Weapon . | . . . . . . . . Special Melee Weapon . | . . . . . . . . Unidentified Prototypes 1 | . . . . . . . 1 Corrupted Parts 4 | . . . . . 4 . . System Corruption 17 | . . . . . 17 . . Parts Lost 41 | . . 6 9 1 17 . 8 Power 8 | . . 2 1 1 4 . . Propulsion 15 | . . 3 4 . 4 . 4 Utility 6 | . . 1 1 . 2 . 2 Weapon 12 | . . . 3 . 7 . 2 Highest Loss Streak 8 | . . 2 5 1 6 . 8 To Critical Strikes . | . . . . . . . . Average Backups 5 | 3 7 6 3 3 6 3 3 Power . | 1 2 . . . . . . Propulsion . | 1 4 2 1 . . . . Utility 2 | . . 1 1 1 2 2 2 Weapon 1 | 1 1 1 1 1 1 . . Tool/Special . | . . . . . . . . Unused Backups 10 | 2 . 4 . . 2 . 2 Power 2 | . . 1 . . . . 1 Propulsion 2 | 1 . 1 . . . . . Utility 5 | 1 . 1 . . 2 . 1 Weapon 1 | . . 1 . . . . . Tool/Special . | . . . . . . . . Average Slot Usage (%) 68 | . 100 93 48 56 60 61 50 Engine 5 | . 14 13 10 9 1 . . Leg 5 | . . . . . 7 15 11 Wheel 7 | . 28 24 6 . . . . Flight 1 | . . . 8 5 2 . . Device 8 | . 14 10 8 19 6 7 8 Storage 8 | . 14 14 7 . 6 7 5 Processor 9 | . . . . 9 15 15 13 Energy Gun 2 | . . . . 2 3 7 3 Ballistic Gun 12 | . 28 24 4 3 11 . . Special Weapon 2 | . . 3 1 . 1 7 3 Peak Build Rating 30 | 9 9 15 19 26 29 20 30 Average Rating 17 | 5 9 11 10 20 22 20 22 On Entrance 12 | . 9 9 12 6 24 20 20 Naked Turns 21 | . . . 21 . . . . Heaviest Build 28 | 14 13 19 24 21 28 17 18 Greatest Support 40 | 26 26 40 20 17 29 10 20 Greatest Overweight (x) 9 | . . 4 1 2 9 1 3 Average Overweight (x) . | . . . . . . 1 . Largest Inventory Capacity 10 | 8 8 8 8 5 10 10 10 Average Capacity 8 | 5 8 8 7 5 9 10 9 Most Carried 10 | 8 8 8 6 5 10 5 6 Average Carried 6 | 3 7 6 3 3 7 5 4 Final Capacity 10 | 8 8 8 5 5 10 10 5 Final Carried 8 | 8 8 6 5 5 5 5 2 Class Distribution -------------------- 43% | Scavenger-Mutant 32% | Mutant 21% | Skirmisher Dominant Class ---------------- Mutant | -10/Materials Scavenger-Mutant | -10/Subcaves Mutant | -8/Materials Mutant | -7/Factory Skirmisher | -7/Lower Caves Scavenger-Mutant | -7/Lower Caves Scavenger-Mutant | -6/Factory Resources | -11 -10 -10 -8 -7 -7 -7 -6 ----------- Run | Yrd Mat Sub Mat Fac Low Low Fac Matter Collected 1172 | 290 42 205 18 269 348 . . Remotely . | . . . . . . . . Salvage Created 887 | 230 99 84 36 113 325 . . Parts 54 | 13 8 2 5 7 19 . . Haulers Intercepted . | . . . . . . . . Recyclers Shooed 2 | 1 . . . 1 . . . Parts Field Recycled . | . . . . . . . . Retrieved Matter . | . . . . . . . . Parts Self-Destructed 31 | . . 22 . . 9 . . Prevented 7 | . . . . . 7 . . Kills | -11 -10 -10 -8 -7 -7 -7 -6 ------- Run | Yrd Mat Sub Mat Fac Low Low Fac Combat Hostiles Destroyed 15 | . 2 1 3 3 6 . . Guns 14 | . 2 1 3 2 6 . . Classes Destroyed 10 | 3 1 2 1 . 3 . . Worker 2 | 2 . . . . . . . Tunneler 6 | 5 1 . . . . . . Recycler 1 | 1 . . . . . . . Turret 1 | . . 1 . . . . . Swarmer 5 | . . . 3 2 . . . Grunt 5 | . 2 . . 1 2 . . Duelist 1 | . . . . . 1 . . Hunter 2 | . . . . . 2 . . Programmer 1 | . . . . . 1 . . Subdweller 1 | . . 1 . . . . . Best Kill Streak 6 | 6 1 1 3 2 3 . . Combat Bots Only 3 | . 1 1 3 2 3 . . Max Kills in Single Turn 1 | 1 1 1 1 1 1 . . Gunslinging . | . . . . . . . . Exploded . | . . . . . . . . Melee . | . . . . . . . . Uniques/NPCs Destroyed . | . . . . . . . . Combat | -11 -10 -10 -8 -7 -7 -7 -6 -------- Run | Yrd Mat Sub Mat Fac Low Low Fac Hostile Shots Fired 644 | . 21 61 113 25 143 . 281 Missed 232 | . 10 23 41 11 44 . 103 Hits 412 | . 11 38 72 14 99 . 178 Melee 7 | . . . . . 7 . . Projectile 405 | . 11 38 72 14 92 . 178 Critical Strikes 11 | . . . 5 . 5 . 1 Damage Taken 5526 | 1 158 525 987 190 1627 . 2038 Core 1791 | 1 53 104 426 97 448 . 662 Absorbed by Shields . | . . . . . . . . Core Remaining (%) 44 | 99 . 36 22 . . 22 . Volleys Fired 121 | 15 11 25 6 16 48 . . Largest 3 | 2 2 2 3 2 3 . . Hottest 158 | 70 40 100 158 80 150 . . Shots Fired 204 | 30 22 42 14 29 66 1 . Gun 194 | 30 22 34 12 29 66 1 . Cannon . | . . . . . . . . Launcher . | . . . . . . . . Special 10 | . . 8 2 . . . . Kinetic 124 | 15 22 34 12 16 25 . . Thermal 55 | 15 . 8 2 . 29 1 . Explosive . | . . . . . . . . Electromagnetic 25 | . . . . 13 12 . . Robot Hit Streak 23 | 12 17 23 5 15 7 . . Robot Miss Streak 4 | 1 2 2 4 2 4 . . Penetration Max . | . . . . . . . . Secondary Targets 3 | . . . 2 . 1 . . Max Gunslinging Chain 1 | . . . 1 . 1 . . Shots Hit Robots 138 | 22 17 30 7 22 40 . . Core Hits 47 | 9 8 10 3 5 12 . . Critical Kills . | . . . . . . . . Critical Parts Destroyed . | . . . . . . . . Critical Strikes 3 | 2 . . . 1 . . . Burn 2 | 2 . . . . . . . Corrupt 1 | . . . . 1 . . . Melee Attacks . | . . . . . . . . Impact . | . . . . . . . . Slashing . | . . . . . . . . Piercing . | . . . . . . . . Sneak Attacks . | . . . . . . . . Combat Hostiles . | . . . . . . . . Follow-up Attacks . | . . . . . . . . Damage Inflicted 1829 | 249 141 230 122 381 702 . 4 Guns 1817 | 246 136 230 122 381 702 . . Cannons . | . . . . . . . . Explosions . | . . . . . . . . Melee . | . . . . . . . . Ramming 12 | 3 5 . . . . . 4 Kinetic 1014 | 71 136 230 122 189 266 . . Thermal 404 | 175 . . . . 229 . . Explosive . | . . . . . . . . Electromagnetic 399 | . . . . 192 207 . . Impact . | . . . . . . . . Slashing . | . . . . . . . . Piercing . | . . . . . . . . Highest Corruption 19 | . . . . . 19 19 . Average Corruption 8 | . . . . . 6 19 . Corruption Purged . | . . . . . . . . Corruption Blocked . | . . . . . . . . Effects 62 | . . . . . 43 19 . Message Errors 16 | . . . . . 10 6 . Matter Fused 14 | . . . . . 11 3 . Heat Flow Errors 8 | . . . . . 5 3 . Energy Discharges 8 | . . . . . 6 2 . Parts Fused 1 | . . . . . 1 . . Data Loss (minor) 8 | . . . . . 5 3 . Data Loss (major) 1 | . . . . . . 1 . Misfires 3 | . . . . . 2 1 . Alerts 1 | . . . . . 1 . . Weapon Failures 2 | . . . . . 2 . . Overload Shots . | . . . . . . . . Overflow Damage . | . . . . . . . . Projectiles . | . . . . . . . . Explosions . | . . . . . . . . Melee . | . . . . . . . . Knockbacks . | . . . . . . . . Impact . | . . . . . . . . Kinetic . | . . . . . . . . Secondary . | . . . . . . . . Self-Inflicted Damage 3 | 1 2 . . . . . . Shots . | . . . . . . . . Rammed 4 | 1 3 . . . . . . Targets Rammed 5 | 1 3 . . . . . 1 Kicked 1 | . . . . . . . 1 Crushed . | . . . . . . . . Highest Temperature 556 | 190 18 . 205 228 556 265 . Average Temperature 115 | 90 9 . 116 99 143 116 . Received Heat Transfer 1512 | . 87 171 234 54 522 . 444 Effects 2 | . . . . . 2 . . Shutdowns 1 | . . . . . 1 . . Energy Bleed 1 | . . . . . 1 . . Siege Activations . | . . . . . . . . Martial Activations . | . . . . . . . . Shielding Activations . | . . . . . . . . Robots Disrupted 1 | . . . . . 1 . . Combat Hostiles 1 | . . . . . 1 . . Robots Corrupted 1 | . . . . 1 . . . Combat Hostiles 1 | . . . . 1 . . . Parts Fried 1 | . . . . 1 . . . Impact Corruptions . | . . . . . . . . Robots Melted . | . . . . . . . . Combat Hostiles . | . . . . . . . . Parts Melted 4 | 4 . . . . . . . Heat Transferred 1201 | 666 . . . . 535 . . Parts Sabotaged . | . . . . . . . . Parts Stolen . | . . . . . . . . Parts Stripped . | . . . . . . . . Power Chain Reactions . | . . . . . . . . Alert | -11 -10 -10 -8 -7 -7 -7 -6 ------- Run | Yrd Mat Sub Mat Fac Low Low Fac Maximum Alert Level . | . . . . . . . . Low Security (%) 100 | 100 100 . 100 100 . . 100 Level 1 . | . . . . . . . . Level 2 . | . . . . . . . . Level 3 . | . . . . . . . . Level 4 . | . . . . . . . . Level 5 . | . . . . . . . . High Security . | . . . . . . . . Max Security . | . . . . . . . . Peak Influence 125 | 20 40 . 55 125 . . 5 Initial 20 | . . . . 20 . . . Average 19 | 5 11 . 11 67 . . . Influence Increases 818 | 40 55 80 163 215 250 . 15 Destroy 0b10 Robot/C 300 | . 40 20 60 60 120 . . Destroy 0b10 Robot/NC 45 | 40 5 . . . . . . Destroy Leader 50 | . 10 . 10 20 10 . . Disable Machine 15 | . . . . 15 . . . Destroy Structure 3 | . . . 3 . . . . Partial Spotted 15 | . . . . 15 . . . Lose Combat Pursuer 390 | . . 60 90 105 120 . 15 Influence Decreases 818 | 40 50 85 118 145 365 . 15 Entered New Map 71 | . . 3 . 25 43 . . Time Decay 556 | 40 50 62 47 110 242 . 5 Lost Part 191 | . . 20 71 10 80 . 10 Squads Dispatched 8 | . 1 . 3 2 . . 2 Investigation 1 | . . . 1 . . . . Extermination 1 | . . . . 1 . . . Reinforcement 6 | . 1 . 2 1 . . 2 Assault . | . . . . . . . . Garrison . | . . . . . . . . Intercept . | . . . . . . . . Searches Triggered . | . . . . . . . . Construction Impeded 1 | . . . . . . . 1 Haulers Reinforced . | . . . . . . . . Active Scanning Responses . | . . . . . . . . Cargo Convoy Interrupts . | . . . . . . . . Stealth | -11 -10 -10 -8 -7 -7 -7 -6 --------- Run | Yrd Mat Sub Mat Fac Low Low Fac Distress Signals 4 | . 2 . . 2 . . . Communications Jammed . | . . . . . . . . Distress Signals . | . . . . . . . . Times Spotted 80 | . 7 20 12 14 14 . 13 Peak Tracking Total 9 | . 3 5 7 4 4 . 9 Tactical Retreats 15 | . . 3 2 4 5 . 1 Traps | -11 -10 -10 -8 -7 -7 -7 -6 ------- Run | Yrd Mat Sub Mat Fac Low Low Fac Traps Triggered 1 | . . . 1 . . . . Indirectly . | . . . . . . . . Trap Hack Attempts . | . . . . . . . . Triggered . | . . . . . . . . Disarmed . | . . . . . . . . Reprogrammed . | . . . . . . . . Reused . | . . . . . . . . Traps Extracted . | . . . . . . . . Installed . | . . . . . . . . Triggered . | . . . . . . . . Machines | -11 -10 -10 -8 -7 -7 -7 -6 ---------- Run | Yrd Mat Sub Mat Fac Low Low Fac Machines Disabled 1 | . . . . 1 . . . Max in Single Turn 1 | . . . . 1 . . . Machines Repaired . | . . . . . . . . Machines Dismantled . | . . . . . . . . Machines Sabotaged . | . . . . . . . . Overloaded Fab Kills . | . . . . . . . . Hacking | -11 -10 -10 -8 -7 -7 -7 -6 --------- Run | Yrd Mat Sub Mat Fac Low Low Fac Machines Accessed 2 | . 1 . . . 1 . . Terminals 1 | . 1 . . . . . . Fabricators . | . . . . . . . . Repair Stations . | . . . . . . . . Recycling Units . | . . . . . . . . Scanalyzers . | . . . . . . . . Garrison Access . | . . . . . . . . Total Hacks 2 | . 1 . . . 1 . . Successful 1 | . . . . . 1 . . Failed 1 | . 1 . . . . . . Catastrophic . | . . . . . . . . Database Lockouts . | . . . . . . . . Manual 1 | . 1 . . . . . . Terminals 1 | . 1 . . . . . . Fabricators . | . . . . . . . . Repair Stations . | . . . . . . . . Recycling Units . | . . . . . . . . Scanalyzers . | . . . . . . . . Garrison Access . | . . . . . . . . Terminal Hacks 1 | . . . . . 1 . . Open Door 1 | . . . . . 1 . . Fabricator Hacks . | . . . . . . . . Repair Station Hacks . | . . . . . . . . Recycling Unit Hacks . | . . . . . . . . Scanalyzer . | . . . . . . . . Garrison Access Hacks . | . . . . . . . . Unauthorized Hacks . | . . . . . . . . Terminals . | . . . . . . . . Fabricators . | . . . . . . . . Repair Stations . | . . . . . . . . Recycling Units . | . . . . . . . . Scanalyzers . | . . . . . . . . Garrison Access . | . . . . . . . . Data Cores Recovered . | . . . . . . . . Used . | . . . . . . . . Hacking Detections 1 | . 1 . . . . . . Full Trace Events . | . . . . . . . . Feedback Events . | . . . . . . . . Feedback Blocked . | . . . . . . . . Robot Schematics Acquired . | . . . . . . . . Robots Built . | . . . . . . . . Authchips . | . . . . . . . . Time . | . . . . . . . . Total Robot Build Rating . | . . . . . . . . Part Schematics Acquired . | . . . . . . . . Parts Built . | . . . . . . . . Authchips . | . . . . . . . . Time . | . . . . . . . . Total Part Build Rating . | . . . . . . . . Parts Repaired . | . . . . . . . . Time . | . . . . . . . . Parts Recycled . | . . . . . . . . Recycled Matter . | . . . . . . . . Retrieved Matter . | . . . . . . . . Retrieved Components . | . . . . . . . . Parts Scanalyzed . | . . . . . . . . Part Schematics Acquired . | . . . . . . . . Parts Damaged . | . . . . . . . . Bothacking | -11 -10 -10 -8 -7 -7 -7 -6 ------------ Run | Yrd Mat Sub Mat Fac Low Low Fac Used RIF Installer . | . . . . . . . . Robots Hacked . | . . . . . . . . Non-combat . | . . . . . . . . Combat . | . . . . . . . . Robot Hacks Applied . | . . . . . . . . Relay Couplers Released . | . . . . . . . . Fabnet Peak Effective % . | . . . . . . . . Robots Rewired . | . . . . . . . . Allies Hacked . | . . . . . . . . Hacks Repelled . | . . . . . . . . Allies | -11 -10 -10 -8 -7 -7 -7 -6 -------- Run | Yrd Mat Sub Mat Fac Low Low Fac Total Allies . | . . . . . . . . Largest Group . | . . . . . . . . Highest-Rated Group . | . . . . . . . . Highest-Rated Ally . | . . . . . . . . Total Orders . | . . . . . . . . Ally Attacks . | . . . . . . . . Total Damage . | . . . . . . . . Kills . | . . . . . . . . Allies Corrupted . | . . . . . . . . Allies Melted . | . . . . . . . . Intel | -11 -10 -10 -8 -7 -7 -7 -6 ------- Run | Yrd Mat Sub Mat Fac Low Low Fac Active Infowar (turns) 1888 | 41 202 489 223 73 649 . 211 Optics 1185 | . . 133 223 73 546 . 210 Terrain 959 | 41 202 356 . . 244 . 116 Seismic 150 | . . . . . . . 150 Robot Analysis Total . | . . . . . . . . Derelict Logs Recovered 1 | . . . . . 1 . . Drone Launches . | . . . . . . . . Drone Recoveries . | . . . . . . . . Exploration | -11 -10 -10 -8 -7 -7 -7 -6 ------------- Run | Yrd Mat Sub Mat Fac Low Low Fac Turns Passed 4523 | 151 202 1039 258 222 2010 403 238 Spaces Moved 3190 | 101 189 857 229 339 1114 212 149 Core 277 | 21 . 18 75 90 48 . 25 Treads . | . . . . . . . . Legs 1260 | . . . . . 978 212 70 Wheels 1233 | 80 189 839 125 . . . . Hover 54 | . . . . . . . 54 Flight 366 | . . . 29 249 88 . . Fastest Speed 32 | 50 80 80 34 32 32 190 120 Average Speed 121 | 81 86 103 89 45 158 190 145 Slowest Speed 500 | 90 90 250 120 150 500 190 200 Overloaded Moves . | . . . . . . . . Propulsion Burnouts . | . . . . . . . . Robots Hopped 3 | . . . . 3 . . . Potential Cave-ins . | . . . . . . . . Cave-ins Triggered . | . . . . . . . . Exploration Rate (%) 32 | 3 31 54 28 14 95 24 7 Regions Visited 7 Branch Regions 3 Pre-discovered Areas 2 | . . 1 . . 1 . . Known Exits Taken 2 | . . . . 1 1 . . Unknown Exits Taken 5 | 1 1 1 1 . . 1 . Scrap Searched 3 | . . . . . 3 . . Spaces Dug . | . . . . . . . . Terrain Destroyed 4 | . . . 4 . . . . Melee . | . . . . . . . . Projectile 4 | . . . 4 . . . . AOE . | . . . . . . . . Terrain Rammed . | . . . . . . . . Walls Destroyed . | . . . . . . . . Machines Disabled . | . . . . . . . . Actions | -11 -10 -10 -8 -7 -7 -7 -6 --------- Run | Yrd Mat Sub Mat Fac Low Low Fac Total 3648 | 149 209 958 269 379 1301 213 170 Wait 136 | . 1 29 1 . 97 . 8 Move 3178 | 100 189 856 228 332 1113 211 149 Hop 3 | . . . . 3 . . . Pick Up 79 | 20 2 15 8 11 18 . 5 Fast Attach . | . . . . . . . . Attach 65 | 7 . 10 15 11 18 . 4 Detach 11 | . . 2 6 2 . . 1 Swap 16 | 1 2 9 1 1 2 . . Drop 32 | 5 2 12 4 3 4 . 2 Fire 121 | 15 11 25 6 16 48 . . Melee . | . . . . . . . . Ram 3 | 1 2 . . . . . . Kick 1 | . . . . . . . 1 Crush . | . . . . . . . . Escape Stasis . | . . . . . . . . Rewire 3 | . . . . . 1 2 . Trap . | . . . . . . . . Miscellaneous . | . . . . . . . . Route ------- -11/Scrapyard -10/Materials (discovered 2 exits: [Mat] / [*Sub]) -10/Subcaves (discovered 2 exits: [*Mat] / [*Rec]) -8/Materials -7/Factory -7/Lower Caves -7/Lower Caves -6/Factory History --------- Turn | Location | Event 14 | -11/Scrapyard | Discovered new exit (range 16) 152 | -11/Scrapyard | Entered Materials 213 | -10/Materials | Discovered new exit (range 14) 314 | -10/Materials | Build established: Mutant 348 | -10/Materials | Discovered new exit (range 9) 354 | -10/Materials | Entered Subcaves 355 | -10/Subcaves | Approached by a straggling Scientist 393 | -10/Subcaves | Ambushed by swarm of Subdwellers 703 | -10/Subcaves | Build established: Scavenger-Mutant 714 | -10/Subcaves | Learned location of Zion (-6) 714 | -10/Subcaves | Met a Zionite searching for "candidates" 748 | -10/Subcaves | Discovered new exit (range 10) 940 | -10/Subcaves | Shifting Twisted Machinery released Barrage Gun 992 | -10/Subcaves | Discovered new exit (range 13) 993 | -10/Subcaves | Shifting Twisted Machinery released Sub. Machine Gun 1018 | -10/Subcaves | Core integrity fell below 50% 1121 | -10/Subcaves | Shifting Twisted Machinery released Battle Cannon 1123 | -10/Subcaves | Shifting Twisted Machinery released Spk. Treads 1393 | -10/Subcaves | Entered Materials 1393 | -8/Materials | Evolved 4 slots: Power x1, Propulsion x1, Utility x1, Weapon x1 1550 | -8/Materials | Lost 5 parts (2n3w) 1586 | -8/Materials | Core integrity fell below 50% 1610 | -8/Materials | Lost 3 parts (1p2n) 1645 | -8/Materials | Discovered new exit (range 11) 1651 | -8/Materials | Entered Factory 1651 | -7/Factory | Evolved 2 slots: Propulsion x1, Utility x1 1867 | -7/Factory | Discovered new exit (range 19) 1873 | -7/Factory | Identified exit to Lower Caves 1873 | -7/Factory | Entered Lower Caves 1952 | -7/Lower Caves | Learned location of Extension (-4) 2053 | -7/Lower Caves | Encountered a Warlord checkpoint 2111 | -7/Lower Caves | Ambushed by research squad 2176 | -7/Lower Caves | Discovered new exit (range 6) 2180 | -7/Lower Caves | Identified exit to Lower Caves 2204 | -7/Lower Caves | Lost 3 parts (1p2n) 2256 | -7/Lower Caves | Lost 4 parts (1p1u2w) 2330 | -7/Lower Caves | Found Prototype Device 2580 | -7/Lower Caves | Build established: Skirmisher 3279 | -7/Lower Caves | Core integrity fell below 50% 3317 | -7/Lower Caves | Lost 6 parts (1n1u4w) 3373 | -7/Lower Caves | System corruption reached 10% 3424 | -7/Lower Caves | Lost 3 parts (2p1w) 3782 | -7/Lower Caves | Build established: Scavenger-Mutant 3883 | -7/Lower Caves | Entered another Lower Caves area 4055 | -7/Lower Caves | Discovered new exit (range 16) 4286 | -7/Lower Caves | Entered Factory 4286 | -6/Factory | Evolved 2 slots: Utility x1, Weapon x1 4491 | -6/Factory | Identified Heart of Steel 4494 | -6/Factory | Lost 8 parts (4n2u2w) 4500 | -6/Factory | Core integrity fell below 50% 4524 | -6/Factory | Self-destructed Last Messages --------------- 04460_ Aluminum Leg destroyed. 04463_ Seismic Detector destroyed. 04465_ Acquired Lgt. Angular Momentum Engine. 04466_ Slug penetrates Wall. 04476_ Penetrated by Slug. 04490_ Dropped Med. Storage Unit. 04491_ Identified Heart of Steel. 04507_ Critical hit (Burn: +37). 04512_ Penetrated by Slug. 04515_ Slug penetrates Wall. 04515_ Slug penetrates Construction Platform. 04515_ Penetrated by Slug. 04518_ Slug penetrates Construction Platform. 04518_ Penetrated by Slug. 04521_ Slug penetrates Construction Platform. 04521_ Slug penetrates Y-54 Guardian. 04521_ Dropped Hcp. Storage Unit. 04522_ Discarded Heart of Steel. 04523_ Acquired Hcp. Storage Unit. Map ----- +----------------------------------------------------+ | ?????????????????????????????????????????????????? | | ?????????????????????????????????????????????????? | | ?????????????????????????????????????????????????? | | ?????????????????????????????????????????????????? | | ?????????????????????????????????????????????????? | | ?????????????????????????????????????????????????? | | ?????????????????????????????????????????????????? | | ?????????????????????????????????????????????????? | | ?????????????????????????????????????????????????? | | ?????????????????????????????????????????????????? | | ?????????????????????????????????????????????????? | | ?????????????????????????????????????????????????? | | ?????????????????????????????????????????????????? | | ????????????????????????????????????????????###### | | ????????????????????????##########?????????# | | ????????????????????????# !* #?????????# | | ????????????????????????# h"""" #?????????#= | | ????????????????????????# """" #?????????# | | ????????????????????????# """" ########### | | ????????????????????????# """" # # " " " | | ????????????????????????# """" + # " " " | | ????????????????????????#YY"""" # # " " " | | ????????????????????????# g"""" # # " " " | | ???????????????????????## h + / " " " | | ???????????????????????# """" # # " " " | | ???????????????????????##@ """" # # " " " | | ????????????????????????# """" # # " " " | | ????????????????????????# """" # # " " " | | ????????????????????????# """"h ### ### | | ????????????????????????# s"""" #?# #?# | | ????????????????????????#s """" #?# #?# | | ????????????????????????# s #?# #?# | | ????????????????????????# #?# #?####### | | ????????????????????????#######+##?# #???????? | | ???????????????????????????????????# #???????? | | ??????????????????????????????????? | | ?????????????????????????????????? | | ?????????????????????????????????? | | ????????????????????????????????? | | ????????????????????????????????? | | ??????????????????????????????????#####+##?####### | | ?????????????????????????????????????????????????? | | ?????????????????????????????????????????????????? | | ?????????????????????????????????????????????????? | | ?????????????????????????????????????????????????? | | ?????????????????????????????????????????????????? | | ?????????????????????????????????????????????????? | | ?????????????????????????????????????????????????? | | ?????????????????????????????????????????????????? | | ?????????????????????????????????????????????????? | +----------------------------------------------------+ Best States ------------- Heat Dissipation 37 Energy Generation 24 Energy Capacity 335 Matter Stores 300 Matter Capacity 300 Sight Range 21 Terrain Scan Range 16 Terrain Scan Density 10 Additional Mass Support 9 Armor Coverage 100 Resistance: TH 10 Evasion (%) 63 Item Schematics ----------------- None Robot Schematics ------------------ None Fabricated ------------ Nothing Repaired ---------- Nothing Alien Tech Used ----------------- None Achievements -------------- None Challenges ------------ None Game ------ Seed JunkOvertunedArachnoskeleton Manual? 0 Play Time 00:44:11 Cumulative 16.5 hours Start 2025.07.05 @ 14:11:52 End 2025.07.05 @ 15:47:48 Sessions 1 Manual Loads 0 Difficulty Rogue Special Mode None Game No. 19 Rogue 19 Adventurer 0 Explorer 0 Win Type - Total 0 Types 0/0/0/0/0/0/0/0/0/0 Lore% 12 Gallery% 22 Achievement% 24 Wizard Run 0 Options --------- Layout 1 ASCII 0 Keyboard 0 Movement Numpad Keybinds 0 Fullscreen 2 Font 24/Smallcaps Map View 50x35 Zoom Use 1% Tactical HUD 1 Map Filters NONE Filters NONE Steam 1 RUN: e28c314b-8061-4098-b906-a84588036a25